bitfinex/quotes_ETHUSD_20260113
["timestamp","ask_amount","ask_price","bid_price","bid_amount"]
[1768321403320,0.002,3178.3,3177.9,2.52307473]
[1768321403520,0.247,3178.8,3178.2,2.52307473]
[1768321404330,0.247,3178.8,3177.9,2.52307473]
[1768321404645,0.03932425,3178.7,3177.9,2.52307473]
[1768321404935,0.03932425,3178.7,3177.7,3.1469006]
[1768321405237,0.03932425,3178.7,3177.7,5.66997533]
[1768321405533,0.26608042,3178.6,3177.8,2.52307473]
[1768321405928,3.41213238,3178.6,3177.8,2.52307473]
[1768321406372,3.39286558,3178.8,3177.8,2.52307473]
[1768321406373,3.14588786,3178.8,3177.8,2.52307473]
[1768321406635,6.53877572,3178.8,3177.8,2.52307473]
[1768321407327,0.002,3178.0,3177.8,5.66984281]
[1768321407507,6.53877572,3178.8,3177.8,5.66984281]
[1768321407712,0.002,3178.3,3177.8,5.66984281]
[1768321408219,0.002,3178.3,3177.8,3.14676808]
[1768321409141,0.002,3178.3,3177.7,3.14688194]
[1768321409642,0.002,3178.3,3177.6,5.67009599]
[1768321410047,0.002,3178.3,3177.7,2.52307473]
[1768321410924,3.14603913,3178.6,3177.8,2.52307473]
[1768321411249,6.29207826,3178.6,3177.8,2.52307473]
[1768321411711,3.14594016,3178.7,3177.9,2.52307473]
[1768321414037,3.14594016,3178.7,3177.9,5.66975132]
[1768321414548,6.29191086,3178.7,3177.9,5.66975132]
[1768321414731,6.94600195,3178.7,3177.9,5.66975132]
[1768321414919,6.94600195,3178.7,3177.8,3.14677785]
[1768321415238,6.94600195,3178.7,3177.9,3.14669788]
[1768321415239,3.80003125,3178.7,3177.9,3.14669788]
[1768321415639,3.80003125,3178.7,3177.4,4.27497121]
[1768321415640,6.94600195,3178.7,3177.8,5.59728514]
[1768321415840,3.80003125,3178.7,3177.9,3.14672896]
[1768321416056,0.40470313,3178.6,3177.9,3.14672896]
[1768321417450,3.14613811,3178.5,3177.9,3.14672896]
[1768321418242,3.14613811,3178.5,3177.5,2.45051104]
[1768321418243,2.54801752,3178.4,3177.5,2.45051104]
[1768321418452,0.247,3178.3,3177.5,5.5976373]
[1768321418619,0.27950175,3178.2,3177.5,5.5976373]
[1768321419013,0.27950175,3178.2,3177.5,2.45051104]
[1768321419248,3.39336459,3178.3,3177.6,2.45051104]
[1768321419422,3.39336459,3178.3,3177.6,5.59747446]
[1768321419752,3.39336459,3178.3,3177.6,2.45051104]
[1768321419958,3.39336459,3178.3,3177.5,3.14710741]
[1768321420323,3.39336459,3178.3,3178.2,0.001]
[1768321420542,0.90482128,3178.3,3178.2,0.001]
[1768321420719,3.79776163,3178.6,3178.2,0.001]
[1768321421132,0.65170313,3178.6,3178.2,0.001]
[1768321421334,3.79776972,3178.6,3178.2,0.001]
[1768321422130,0.40470313,3178.6,3178.2,0.001]
[1768321422332,0.247,3178.8,3178.2,0.001]
[1768321422547,0.002,3178.9,3178.2,2.45151104]
[1768321423337,0.000802,3179.2,3178.5,2.45051104]
[1768321424370,0.000802,3179.2,3178.5,7.19823369]
[1768321424858,0.000802,3179.2,3178.2,0.001]
[1768321424859,2.54880962,3179.2,3178.2,0.001]
[1768321425160,2.50868956,3179.0,3178.2,0.001]
[1768321425460,3.14584119,3178.8,3178.2,0.001]
[1768321425759,2.50868956,3178.7,3178.2,0.001]
[1768321426146,6.29168238,3178.8,3178.2,0.001]
[1768321426456,8.80037194,3178.8,3178.2,0.001]
[1768321426757,0.90473719,3178.7,3178.2,0.001]
[1768321427759,3.14584119,3178.8,3178.2,0.001]
[1768321428934,2.50868956,3178.7,3177.4,3.14722023]
[1768321429158,2.50868956,3178.7,3177.3,2.45051104]
[1768321429367,2.50868956,3178.7,3177.7,2.45051104]
[1768321429368,3.39308329,3178.6,3177.7,2.45051104]
[1768321430058,3.14579064,3178.9,3177.7,2.45051104]
[1768321430260,3.39279064,3178.9,3177.9,2.45051104]
[1768321431551,6.53858128,3178.9,3178.0,3.1466331]
[1768321431829,9.04727084,3178.9,3177.9,3.14668629]
[1768321432529,0.03932301,3178.8,3177.9,3.14668629]
[1768321432738,2.54801257,3178.8,3177.7,3.14686253]
[1768321432978,2.50868956,3178.6,3177.7,3.14692379]
[1768321433138,0.002,3178.4,3177.4,2.45051104]
[1768321433467,0.002,3178.4,3177.6,3.14702461]
[1768321433774,0.002,3178.4,3177.5,3.14712824]
[1768321434142,0.002,3178.4,3177.5,6.29425648]
[1768321434640,3.39098614,3178.4,3177.5,3.14712824]
[1768321434855,3.63798614,3178.4,3177.5,3.14712824]
[1768321435458,3.63798614,3178.4,3177.5,6.29425648]
[1768321435660,4.27557146,3178.4,3177.4,8.74496562]
[1768321436045,7.42184634,3178.4,3177.4,8.74496562]
[1768321436463,4.27557146,3178.4,3177.4,8.74496562]
[1768321436662,4.27557146,3178.4,3177.4,9.64406218]
[1768321437375,4.27557146,3178.4,3177.5,2.45051104]
[1768321437376,1.12929658,3178.4,3177.5,2.45051104]
[1768321437575,3.39527574,3178.4,3177.5,2.45051104]
[1768321437782,3.39527574,3178.4,3177.6,3.1470292]
[1768321437975,0.249,3178.4,3177.6,6.2940584]
[1768321438139,0.249,3178.4,3177.6,8.74456944]
[1768321439169,3.39526146,3178.4,3177.6,8.74456944]
[1768321439374,0.249,3178.4,3177.6,8.74456944]
[1768321439589,0.249,3178.4,3177.6,9.70893604]
[1768321440277,0.002,3178.4,3177.7,2.45051104]
[1768321440447,3.14824252,3178.4,3177.7,2.45051104]
[1768321440647,0.002,3178.4,3177.7,2.45051104]
[1768321442076,0.002,3178.4,3177.8,3.14683114]
[1768321442574,0.002,3178.4,3177.7,3.14689487]
[1768321443478,0.002,3178.4,3177.7,9.47016468]
[1768321443777,0.002,3178.4,3177.8,2.45051104]
[1768321443984,0.002,3178.4,3177.8,5.59727663]
[1768321445501,0.002,3178.4,3177.8,7.20005965]
[1768321445644,0.002,3178.4,3177.7,5.47537722]
[1768321446147,0.002,3178.4,3178.1,0.001]
[1768321446748,2.95296477,3178.4,3177.4,2.29289251]
[1768321447083,0.65633018,3178.4,3177.6,5.43986742]
[1768321447449,0.65633018,3178.4,3177.7,3.14691773]
[1768321447647,0.65633018,3178.4,3177.6,5.4399113]
[1768321447849,0.65633018,3178.4,3177.7,3.14691953]
[1768321448088,3.14633609,3178.3,3177.6,2.28990339]
[1768321448458,3.14633609,3178.3,3177.6,5.43690932]
[1768321448787,3.86611907,3178.3,3177.6,2.29289251]
[1768321449078,3.14633609,3178.3,3177.6,2.29289251]
[1768321449248,3.14633609,3178.3,3177.6,5.436922]
[1768321450087,3.1482371,3178.4,3177.6,3.14701861]
[1768321450251,3.1482371,3178.4,3177.6,3.14402949]
[1768321450690,3.1482371,3178.4,3177.5,2.29289251]
[1768321450691,6.2944742,3178.4,3177.5,5.43998098]
[1768321450983,6.2944742,3178.4,3177.0,0.248]
[1768321450984,2.29663459,3178.2,3177.1,2.29289251]
[1768321451151,2.29663459,3178.1,3177.1,2.29289251]
[1768321451348,0.247,3178.0,3177.3,3.14732503]
[1768321451579,0.247,3178.0,3177.2,2.28990339]
[1768321451981,0.247,3178.0,3177.2,5.437308]
[1768321452347,3.39372826,3178.0,3177.2,5.437308]
[1768321452553,4.04775414,3178.0,3177.2,5.437308]
[1768321452800,7.1944824,3178.0,3177.2,2.28691427]
[1768321453160,4.04775414,3178.0,3177.2,5.43433776]
[1768321453355,7.1944824,3178.0,3177.0,2.29389251]
[1768321453556,2.29663459,3177.9,3177.0,0.001]
[1768321453763,2.29663459,3177.7,3177.0,0.001]
[1768321454069,2.29663459,3177.7,3176.9,3.14766063]
[1768321454459,3.1470292,3177.6,3176.8,3.1478217]
[1768321454662,0.247,3177.5,3176.8,3.1478217]
[1768321454982,0.247,3177.5,3176.7,11.04239721]
[1768321455287,0.247,3177.5,3176.7,9.22800539]
[1768321455891,0.247,3177.5,3176.8,4.74954861]
[1768321456271,0.247,3177.5,3176.8,2.28031727]
[1768321456452,3.14722729,3177.4,3176.8,2.28031727]
[1768321456896,3.39414146,3177.5,3176.8,5.42813555]
[1768321457194,0.247,3177.5,3177.1,7.02986588]
[1768321457494,0.247,3177.5,3176.9,4.74954861]
[1768321457659,0.247,3177.5,3176.8,3.14781828]
[1768321457660,0.58639718,3177.5,3176.7,5.42821041]
[1768321457989,0.58639718,3177.5,3176.7,5.42817732]
[1768321458288,3.0218852,3177.5,3176.7,3.14786005]
[1768321458491,3.73358095,3177.5,3176.7,2.27732815]
[1768321459691,3.73358095,3177.5,3176.7,2.27433903]
[1768321459997,6.54136754,3177.5,3176.7,2.13118843]
[1768321460792,6.54136754,3177.5,3177.0,0.001]
[1768321461190,6.54136754,3177.5,3176.7,2.12919799]
[1768321462171,8.97685556,3177.5,3176.6,3.14796781]
[1768321462500,1.26378452,3177.8,3176.9,7.02986588]
[1768321462721,3.14853409,3178.1,3177.5,4.74954861]
[1768321463197,0.247,3178.0,3177.5,4.74954861]
[1768321463385,3.14853409,3178.1,3177.6,2.28031727]
[1768321463386,0.002,3178.1,3177.6,2.28031727]
[1768321463590,0.002,3178.4,3177.7,2.27732683]
[1768321463591,0.247,3178.2,3177.7,2.27732683]
[1768321463803,0.002,3178.4,3178.1,7.02986588]
[1768321464100,0.002,3178.5,3178.1,7.02986588]
[1768321464304,0.002,3178.5,3178.1,4.74954861]
[1768321464998,0.002,3178.5,3178.1,4.74655977]
[1768321465203,0.002,3178.5,3177.6,2.98330386]
[1768321465369,0.002,3178.5,3177.7,0.79798525]
[1768321465569,0.002,3178.5,3177.6,2.28031727]
[1768321465979,0.002,3178.5,3177.4,0.247]
[1768321465980,0.002,3178.5,3177.5,3.14710045]
[1768321466185,0.002,3178.5,3177.6,3.1440029]
[1768321466431,0.002,3178.5,3177.7,3.14692896]
[1768321466769,0.002,3178.5,3177.6,3.14699015]
[1768321467197,6.29427622,3178.5,3177.4,8.57476243]
[1768321467402,0.03932796,3178.4,3177.5,0.8544874]
[1768321467701,0.03932796,3178.4,3177.4,5.42753514]
[1768321467872,6.29427622,3178.5,3177.4,5.42753514]
[1768321468065,2.43548802,3178.4,3177.4,3.14721787]
[1768321468269,2.43548802,3178.4,3177.1,2.28031727]
[1768321468503,2.43548802,3178.3,3177.1,5.42776471]
[1768321468686,0.4905488,3178.2,3177.1,2.27732843]
[1768321468891,2.92603682,3178.2,3177.1,5.42479125]
[1768321469090,6.29306818,3178.1,3177.1,5.42479125]
[1768321469286,0.03933291,3178.0,3177.1,2.27732843]
[1768321469489,0.03933291,3178.0,3176.7,0.247]
[1768321469490,2.47482093,3178.0,3176.9,3.14765455]
[1768321469673,9.43960227,3178.1,3176.9,3.14466571]
[1768321469674,1.19144232,3177.9,3176.9,3.14466571]
[1768321469994,3.62693034,3177.9,3176.9,3.14466571]
[1768321470403,3.62693034,3177.9,3176.8,2.28031727]
[1768321470607,3.62693034,3177.9,3177.0,3.14759441]
[1768321470786,3.62693034,3177.9,3177.0,3.14758101]
[1768321470988,0.36269303,3177.8,3177.0,3.14459217]
[1768321471210,3.1470292,3177.6,3176.8,5.42808562]
[1768321472212,3.1470292,3177.6,3176.8,5.42509678]
[1768321472712,3.1470292,3177.6,3176.8,3.14776835]
[1768321472908,3.39397829,3177.7,3176.8,6.29559005]
[1768321473210,3.39397829,3177.7,3176.8,4.00535908]
[1768321473811,6.54095658,3177.7,3176.8,4.00535908]
[1768321474119,6.54095658,3177.7,3176.8,3.14477951]
[1768321474294,6.54095658,3177.7,3176.8,3.14782028]
[1768321475397,6.54095658,3177.7,3176.8,3.14483144]
[1768321475597,3.39397829,3177.7,3176.9,2.3295279]
[1768321475780,4.32806857,3177.7,3176.9,2.3295279]
[1768321476111,0.36469303,3177.8,3176.9,2.3295279]
[1768321476112,0.247,3177.6,3176.9,2.3295279]
[1768321476276,0.247,3177.6,3176.9,2.32653906]
[1768321476481,0.002,3178.1,3177.4,2.3295279]
[1768321477208,6.2950765,3178.1,3177.4,2.3295279]
[1768321477407,0.03933291,3178.0,3177.4,2.3295279]
[1768321477609,0.002,3178.1,3177.4,2.3295279]
[1768321477804,0.65618702,3178.1,3177.1,5.47403594]
[1768321478190,0.65618702,3178.1,3177.1,5.47700885]
[1768321478592,0.65618702,3178.1,3177.2,5.47693777]
[1768321478779,0.65618702,3178.1,3177.2,2.32653849]
[1768321478975,0.65618702,3178.1,3177.4,3.14719621]
[1768321479181,0.247,3178.0,3177.3,5.4768086]
[1768321479915,0.247,3178.0,3177.3,2.3295279]
[1768321480083,0.247,3178.0,3177.3,2.32653849]
[1768321480695,3.39368159,3178.0,3177.3,5.47385363]
[1768321480895,3.39368159,3178.0,3177.3,6.33599021]
[1768321481091,0.002,3178.1,3177.4,2.3295279]
[1768321481322,0.249,3178.1,3177.4,2.3295279]
[1768321481747,3.23898645,3178.1,3177.4,2.3295279]
[1768321481946,3.23898645,3178.1,3177.3,0.86213658]
[1768321482145,3.23898645,3178.1,3177.3,4.00944542]
[1768321482353,6.38552852,3178.1,3177.3,0.86213658]
[1768321482654,0.03933291,3178.0,3177.1,5.47701743]
[1768321482856,7.25300882,3178.1,3177.1,2.3295279]
[1768321483948,7.25300882,3178.1,3177.2,3.14737815]
[1768321484135,7.25300882,3178.1,3177.1,5.47701197]
[1768321486750,4.10646675,3178.1,3177.1,8.62453644]
[1768321486951,3.23898645,3178.1,3177.2,0.86245364]
[1768321487255,0.002,3177.8,3177.2,3.19198154]
[1768321487568,0.002,3177.8,3177.3,2.3295279]
[1768321487969,0.002,3177.8,3177.3,5.47681934]
[1768321488350,0.002,3177.8,3177.4,2.3295279]
[1768321488540,0.002,3177.8,3177.4,3.27819675]
[1768321490174,0.002,3177.8,3177.4,0.94866885]
[1768321490357,0.002,3178.1,3177.5,2.3295279]
[1768321490736,3.14854704,3178.1,3177.5,2.3295279]
[1768321491438,0.002,3178.1,3177.5,2.3295279]
[1768321491634,3.14853436,3178.1,3177.5,2.3295279]
[1768321492068,0.002,3178.1,3177.5,2.3295279]
[1768321493049,0.002,3178.1,3177.5,5.47662464]
[1768321493375,0.002,3178.1,3177.5,2.3295279]
[1768321493873,0.002,3178.1,3177.5,5.47663171]
[1768321494245,0.002,3178.1,3177.5,6.43389157]
[1768321494445,0.002,3178.1,3177.5,3.28678776]
[1768321494974,0.002,3178.1,3177.5,6.43391413]
[1768321495176,0.002,3178.1,3177.5,3.28678776]
[1768321495480,0.002,3178.1,3177.5,6.43389382]
[1768321496150,0.002,3178.1,3177.5,3.28678776]
[1768321496356,0.002,3178.1,3177.5,6.43390174]
[1768321496873,0.002,3178.1,3177.6,2.3295279]
[1768321498478,0.002,3178.1,3177.6,2.65734758]
[1768321498654,0.002,3178.5,3177.9,2.3295279]
[1768321499060,0.002,3178.5,3177.7,2.3295279]
[1768321499257,2.2912745,3178.5,3177.6,0.32781968]
[1768321500083,2.2912745,3178.5,3177.8,0.001]
[1768321500245,2.54530195,3178.5,3177.8,0.001]
[1768321500847,0.002,3178.1,3177.8,0.001]
[1768321502351,0.002,3178.5,3177.9,2.3295279]
[1768321502552,0.002,3178.8,3178.4,2.3295279]
[1768321502767,0.002,3178.8,3178.5,2.56248069]
[1768321502971,0.000802,3179.2,3178.5,2.56248069]
[1768321505593,0.002,3179.4,3179.0,2.37661384]
[1768321506062,0.002,3179.4,3178.8,2.37661384]
[1768321506384,0.002,3179.4,3178.5,0.23295279]
[1768321506585,0.002,3179.4,3178.5,2.60956663]
[1768321506897,0.27274415,3179.4,3178.5,2.60956663]
[1768321507488,0.002,3179.4,3178.5,2.60956663]
[1768321509793,0.002,3179.4,3178.8,2.37661384]
[1768321513311,0.002,3179.6,3179.1,2.37661384]
[1768321517595,2.36198587,3179.6,3178.8,0.001]
[1768321517799,2.32267275,3179.6,3178.8,0.001]
[1768321518123,0.23446728,3179.6,3178.8,2.24737825]
[1768321518273,0.002,3179.6,3178.8,2.24737825]
[1768321518476,0.002,3179.7,3179.1,2.24637825]
[1768321519603,0.002,3179.9,3179.4,2.24637825]
[1768321519913,0.002,3180.0,3179.4,2.24637825]
[1768321520075,0.002,3180.0,3179.5,0.47263022]
[1768321521420,0.002,3180.0,3179.5,2.71900847]
[1768321522123,0.002,3180.0,3179.5,0.47263022]
[1768321522480,0.002,3180.0,3179.1,0.246]
[1768321523183,0.002,3180.0,3179.1,2.49237825]
[1768321525621,2.32267275,3180.0,3179.4,0.001]
[1768321528325,2.32067275,3179.8,3178.8,0.001]
[1768321528532,2.32067275,3179.6,3178.8,0.001]
[1768321528733,6.29049506,3179.4,3178.8,0.001]
[1768321529038,8.61116781,3179.4,3178.8,0.001]
[1768321529323,5.46592028,3179.4,3178.8,0.001]
[1768321529807,8.61116781,3179.4,3178.8,0.001]
[1768321531117,6.29049506,3179.4,3178.8,0.001]
[1768321531286,7.15161184,3179.4,3178.8,0.001]
[1768321532014,4.00636431,3179.4,3178.8,0.001]
[1768321532884,2.32067275,3179.0,3178.8,0.001]
[1768321533130,6.29148446,3178.9,3178.0,2.24637825]
[1768321534412,6.29148446,3178.9,3177.5,0.0008024]
[1768321534413,2.32067275,3178.7,3177.5,0.0008024]
[1768321534609,2.32067275,3178.4,3177.5,0.0008024]
[1768321534809,2.32067275,3178.2,3177.5,0.0008024]
[1768321535024,2.1983366,3178.0,3177.5,0.0008024]
[1768321535224,3.36213049,3177.9,3177.5,0.0008024]
[1768321537109,8.49199888,3177.8,3176.6,2.27275762]
[1768321537419,8.49199888,3177.8,3176.6,3.14800137]
[1768321537420,2.4453366,3177.7,3176.6,3.14800137]
[1768321537637,2.9497767,3177.6,3176.6,3.14800137]
[1768321538043,0.7514401,3177.6,3176.5,2.27275762]
[1768321538246,0.247,3177.7,3176.7,5.42065881]
[1768321539122,6.2940584,3177.6,3176.7,2.27275762]
[1768321539751,8.492395,3177.6,3176.7,2.27275762]
[1768321540245,2.1983366,3177.5,3176.6,3.14795215]
[1768321540446,2.1983366,3177.5,3176.3,0.246]
[1768321540628,2.1983366,3177.3,3176.4,3.14815969]
[1768321540830,2.1983366,3177.3,3176.5,3.14809574]
[1768321541025,0.8492395,3177.4,3176.6,3.14801309]
[1768321541236,3.14732634,3177.3,3176.4,2.27275762]
[1768321541442,3.14732634,3177.3,3176.4,5.42093968]
[1768321541654,3.14732634,3177.3,3176.5,0.54209397]
[1768321541856,6.29465268,3177.3,3176.5,0.54209397]
[1768321542167,6.29465268,3177.3,3175.7,3.14885358]
[1768321542168,2.4453366,3177.2,3176.0,2.27275762]
[1768321542352,2.4453366,3177.2,3175.7,3.14883908]
[1768321542540,2.4453366,3177.2,3175.8,2.27275762]
[1768321542741,2.1983366,3177.0,3175.8,6.27860841]
[1768321542965,2.1983366,3177.0,3175.9,3.14871118]
[1768321543270,3.14772262,3176.9,3176.0,2.27275762]
[1768321543661,2.1983366,3176.8,3175.8,4.005804]
[1768321543851,2.1983366,3176.8,3175.9,3.14869921]
[1768321543852,0.247,3176.7,3175.9,3.14869921]
[1768321544174,0.247,3176.7,3176.0,3.54915347]
[1768321544336,0.247,3176.7,3176.0,0.40057578]
[1768321545244,3.39495179,3176.7,3176.0,0.40057578]
[1768321545571,0.247,3176.7,3176.1,2.27275762]
[1768321546066,0.247,3176.8,3176.1,2.27275762]
[1768321546366,0.247,3176.9,3176.2,3.16981267]
[1768321546565,0.247,3176.9,3176.2,0.89705505]
[1768321546871,2.4453366,3176.9,3175.8,3.14877269]
[1768321547165,2.4453366,3176.9,3175.6,2.27275762]
[1768321547166,2.1983366,3176.7,3175.6,2.27275762]
[1768321547348,2.1983366,3176.7,3175.6,5.42173505]
[1768321549472,0.247,3176.6,3175.6,2.27275762]
[1768321549670,0.247,3176.6,3175.9,2.27275762]
[1768321549838,0.247,3176.6,3176.0,2.50003338]
[1768321551268,0.247,3176.6,3176.0,0.22727576]
[1768321551468,3.39502301,3176.6,3176.0,0.22727576]
[1768321551974,0.247,3176.6,3176.0,0.22727576]
[1768321552279,2.1983366,3176.9,3176.0,2.50003338]
[1768321552280,3.14775299,3176.9,3176.0,2.50003338]
[1768321552438,2.1983366,3177.2,3176.1,2.52286096]
[1768321552439,0.247,3177.2,3176.1,2.52286096]
[1768321553165,0.247,3177.3,3176.1,2.52286096]
[1768321553344,2.1983366,3177.8,3176.3,2.27275762]
[1768321553538,3.309,3178.9,3176.3,2.27275762]
[1768321553539,6.29386032,3177.7,3176.3,2.27275762]
[1768321553770,0.247,3177.6,3176.3,2.27275762]
[1768321553969,0.247,3177.6,3176.5,2.27275762]
[1768321554377,3.14693016,3177.7,3176.5,2.27275762]
[1768321554580,3.14637966,3178.3,3176.5,2.51975762]
[1768321554762,2.1983366,3178.7,3176.5,2.51975762]
[1768321554972,3.14576147,3178.9,3176.5,2.51975762]
[1768321554973,3.14584119,3178.8,3177.0,2.27275762]
[1768321555147,0.247,3178.6,3177.2,2.27275762]
[1768321555343,0.247,3178.7,3177.4,2.27275762]
[1768321557787,3.14574223,3178.9,3177.6,2.27275762]
[1768321557951,3.39274223,3178.9,3177.8,2.27275762]
[1768321558473,3.14554433,3179.1,3177.8,2.27275762]
[1768321558672,0.2478024,3179.2,3177.8,2.27275762]
[1768321558673,3.3932695,3179.2,3177.8,2.27275762]
[1768321558877,6.5387366,3179.2,3177.8,2.27275762]
[1768321559075,2.1983366,3179.1,3177.9,0.3129459]
[1768321559381,2.1983366,3178.9,3177.9,0.3129459]
[1768321559575,2.1983366,3178.9,3177.7,0.85670141]
[1768321559784,2.1983366,3178.7,3177.4,5.66690292]
[1768321559977,2.1983366,3178.7,3177.4,2.51975762]
[1768321560185,2.1983366,3178.7,3177.6,3.14696923]
[1768321560397,2.1983366,3178.5,3177.1,2.27275762]
[1768321560583,0.28632548,3178.6,3177.1,2.27275762]
[1768321560584,2.23766456,3178.4,3177.1,2.27275762]
[1768321560894,2.1983366,3178.4,3177.2,0.22727576]
[1768321561072,2.23766456,3178.4,3176.8,2.51975762]
[1768321561392,2.23766456,3178.4,3177.0,3.14755776]
[1768321561700,2.1983366,3178.2,3176.9,6.29544524]
[1768321562001,2.1983366,3178.2,3177.0,2.27275762]
[1768321562308,3.14633609,3178.3,3177.1,3.12957791]
[1768321562466,3.14594016,3178.7,3177.2,2.27275762]
[1768321562788,0.247,3178.7,3177.4,2.27275762]
[1768321563087,3.14555412,3179.1,3177.6,2.27275762]
[1768321563386,0.247,3179.0,3177.8,2.27275762]
[1768321563792,3.14574223,3178.9,3177.9,5.41948973]
[1768321564418,0.002,3178.2,3178.0,2.27275762]
[1768321564618,3.14574223,3178.9,3178.0,2.27275762]
[1768321564922,0.002,3178.5,3178.0,2.27275762]
[1768321565083,0.002,3178.5,3178.1,0.85662218]
[1768321565482,0.002,3178.5,3177.8,6.99679544]
[1768321566420,0.002,3178.5,3177.9,2.2233283]
[1768321568205,0.002,3178.5,3178.0,3.1466331]
[1768321569306,2.25752189,3178.5,3177.8,3.85]
[1768321569655,2.25752189,3178.5,3177.8,6.99677815]
[1768321569822,2.25752189,3178.5,3177.9,3.14672002]
[1768321570149,2.25752189,3178.5,3177.8,3.14680708]
[1768321570499,5.40366676,3178.5,3177.8,3.14680708]
[1768321572548,0.002,3178.5,3177.8,3.14680708]
[1768321572732,0.002,3178.5,3177.9,2.2233283]
[1768321572913,0.247,3178.9,3177.9,2.2233283]
[1768321573308,0.247,3178.9,3177.8,6.9842472]
[1768321573618,2.50252189,3178.9,3177.8,9.2075755]
[1768321573836,2.50252189,3178.9,3177.9,0.52075755]
[1768321574528,0.247,3178.9,3177.9,2.74408585]
[1768321574727,3.39274996,3178.9,3178.0,6.2932662]
[1768321575040,0.247,3178.9,3178.0,6.2932662]
[1768321575243,3.14556375,3179.1,3178.1,0.9037352]
[1768321575430,0.247,3179.0,3178.1,0.9037352]
[1768321576944,8.64666717,3178.9,3178.1,0.9037352]
[1768321577146,8.64666717,3178.9,3177.9,5.8907712]
[1768321577347,8.64666717,3178.9,3178.2,0.001]
[1768321577544,0.03932301,3178.8,3178.2,0.001]
[1768321577746,0.002,3178.7,3178.2,0.001]
[1768321578913,2.35718271,3178.7,3178.2,0.001]
[1768321579109,2.59090098,3178.6,3178.2,0.001]
[1768321579356,0.23571827,3178.6,3178.2,0.001]
[1768321579520,0.002,3178.7,3178.2,0.001]
[1768321579715,2.35718271,3178.7,3178.2,0.001]
[1768321580548,2.35518271,3178.5,3177.6,3.85]
[1768321580747,2.60218271,3178.5,3177.4,2.43563843]
[1768321580915,2.60218271,3178.5,3177.3,3.14728355]
[1768321580916,2.35518271,3178.3,3177.3,3.14728355]
[1768321581247,2.35518271,3178.2,3177.1,0.85682029]
[1768321581414,2.35518271,3178.2,3177.1,3.14747618]
[1768321582346,2.35518271,3178.2,3176.9,5.33633407]
[1768321582515,2.35518271,3178.2,3176.9,2.18863843]
[1768321582844,2.35518271,3178.2,3177.2,3.14741037]
[1768321583264,8.64825089,3178.1,3177.0,3.14755428]
[1768321583451,0.247,3178.0,3177.1,0.40047184]
[1768321584064,2.60218271,3178.0,3177.1,0.40047184]
[1768321585157,3.39346026,3178.2,3177.2,5.33606383]
[1768321585754,6.53992052,3178.2,3177.2,5.33606383]
[1768321585953,8.89510323,3178.2,3177.1,3.54795558]
[1768321586149,10.09924073,3178.2,3177.2,0.66955534]
[1768321586751,2.35518271,3178.1,3177.1,3.14748374]
[1768321587262,3.1466331,3178.0,3177.0,3.14762354]
[1768321587463,3.1466331,3178.0,3177.0,6.29524708]
[1768321587665,6.2932662,3178.0,3177.1,2.18863843]
[1768321587960,6.2932662,3178.0,3177.0,3.14762354]
[1768321587961,8.64844891,3178.0,3177.0,3.14762354]
[1768321588167,8.64844891,3178.0,3177.0,4.02072975]
[1768321588538,3.1466331,3178.0,3177.0,9.35699172]
[1768321589375,8.64825089,3178.1,3177.0,9.35699172]
[1768321589662,3.14653409,3178.1,3177.1,2.18863843]
[1768321589861,0.247,3178.0,3177.1,2.18863843]
[1768321590168,0.247,3178.0,3177.2,0.93569917]
[1768321590740,0.247,3178.0,3177.5,0.001]
[1768321590938,2.60218271,3178.0,3177.5,0.001]
[1768321591460,3.14673211,3177.9,3177.5,0.001]
[1768321595371,6.29346422,3177.9,3177.5,0.001]
[1768321595575,3.14673211,3177.9,3177.5,0.001]
[1768321596082,6.29346422,3177.9,3177.5,0.001]
[1768321596237,7.18302891,3177.9,3177.5,0.001]
[1768321596432,2.29448565,3177.8,3177.5,0.001]
[1768321596731,2.29448565,3177.6,3176.4,2.18187855]
[1768321596962,2.29448565,3177.6,3176.9,3.14772044]
[1768321597174,3.14686769,3177.8,3177.1,2.18087855]
[1768321597350,3.14562129,3179.1,3177.1,2.18087855]
[1768321597351,5.44052478,3178.6,3177.1,2.18087855]
[1768321597562,2.29448565,3178.5,3177.1,2.18087855]
[1768321597741,0.247,3178.4,3177.1,2.18087855]
[1768321597951,0.247,3178.3,3177.3,2.18087855]
[1768321598773,3.39340838,3178.3,3177.5,2.18087855]
[1768321599272,2.29448565,3178.2,3177.2,1.18707491]
[1768321599461,2.29448565,3178.2,3177.1,3.14751512]
[1768321599666,2.29448565,3178.2,3177.2,3.14738359]
[1768321600071,2.29448565,3178.2,3177.1,5.32836159]
[1768321600244,2.29448565,3178.2,3177.0,3.14757166]
[1768321600445,2.29448565,3178.0,3176.9,5.32853245]
[1768321600747,3.14683114,3177.8,3177.0,3.14762354]
[1768321600957,3.14683114,3177.8,3177.0,5.32850209]
[1768321601285,2.29448565,3178.3,3177.1,2.18087855]
[1768321601580,0.247,3177.9,3177.1,2.18087855]
[1768321602075,0.247,3178.0,3177.1,2.18087855]
[1768321602278,1.13043558,3178.0,3177.1,2.18087855]
[1768321603255,4.27706955,3178.0,3177.2,6.2948508]
[1768321603874,1.13043558,3178.0,3177.4,0.001]
[1768321604377,0.249,3178.0,3177.4,2.18187855]
[1768321605286,3.39567092,3178.0,3177.4,3.14821967]
[1768321605443,0.249,3178.0,3177.4,3.14821967]
[1768321605849,0.249,3178.0,3177.4,5.32909822]
[1768321606979,0.002,3178.0,3177.4,5.32909822]
[1768321608474,0.002,3178.0,3177.4,8.47632551]
[1768321608771,0.002,3178.0,3177.4,9.32395806]
[1768321609162,0.002,3178.0,3177.4,6.17673077]
[1768321609766,0.002,3178.0,3177.4,5.32909822]
[1768321609967,0.002,3178.0,3177.5,2.18087855]
[1768321610164,0.002,3178.3,3177.8,2.18087855]
[1768321610388,6.29400818,3178.7,3177.8,5.32764731]
[1768321610584,2.29448565,3178.6,3177.7,3.14690198]
[1768321610768,3.19266175,3178.5,3177.6,5.3278675]
[1768321610964,2.29448565,3178.4,3177.5,3.14707934]
[1768321611170,2.29448565,3178.3,3177.4,0.001]
[1768321611367,0.8981761,3178.5,3177.4,0.001]
[1768321611368,2.54148565,3178.2,3177.5,3.14707249]
[1768321611762,2.54148565,3178.2,3177.4,3.14818394]
[1768321611961,0.50114857,3178.2,3177.5,3.14710508]
[1768321612458,3.14653409,3178.1,3177.4,5.32905933]